bitfinex-derivatives/quotes_BTCF0:USTF0_20251125
["timestamp","ask_amount","ask_price","bid_price","bid_amount"]
[1764081543649,0.0114799,87150.0,87143.0,0.0114807]
[1764081543650,0.02381731,87149.0,87143.0,0.0114807]
[1764081543845,0.17417451,87170.0,87149.0,0.14353]
[1764081544065,0.02380653,87169.0,87156.0,0.3608]
[1764081544263,0.02380653,87169.0,87148.0,0.3608]
[1764081544264,0.02397863,87168.0,87155.0,0.3608]
[1764081544460,0.1522295,87152.0,87151.0,0.0001721]
[1764081544657,0.1522295,87152.0,87137.0,0.3608]
[1764081544658,0.1522314,87138.0,87137.0,0.3608]
[1764081544856,0.5422314,87138.0,87137.0,0.3608]
[1764081545059,0.0114831,87125.0,87123.0,0.15504]
[1764081545257,0.0114831,87125.0,87124.0,0.14353]
[1764081545665,0.0114831,87125.0,87121.0,0.3608]
[1764081545869,0.0001721,87133.0,87121.0,0.3608]
[1764081545870,0.0001721,87133.0,87132.0,0.14353]
[1764081546055,0.0001721,87133.0,87132.0,0.50433]
[1764081546654,0.4101721,87133.0,87132.0,0.50433]
[1764081546861,0.011483,87126.0,87125.0,0.04358]
[1764081547161,0.011483,87126.0,87125.0,0.11471]
[1764081547368,0.011483,87126.0,87125.0,0.18711]
[1764081547764,0.0114835,87122.0,87121.0,0.3608]
[1764081548064,0.0114842,87117.0,87116.0,0.1437021]
[1764081548269,0.0001721,87133.0,87116.0,0.1437021]
[1764081548270,0.0114831,87126.0,87120.0,0.18711]
[1764081548565,0.0114842,87117.0,87116.0,0.0001721]
[1764081548862,0.0114839,87119.0,87118.0,0.14353]
[1764081549065,0.0114839,87119.0,87116.0,0.0001721]
[1764081549460,0.07169,87117.0,87116.0,0.0001721]
[1764081549669,0.52169,87117.0,87116.0,0.0001721]
[1764081549859,0.59075,87117.0,87116.0,0.0001721]
[1764081550271,0.52169,87117.0,87116.0,0.0001721]
[1764081550564,0.59075,87117.0,87116.0,0.0001721]
[1764081550774,0.1522367,87098.0,87097.0,0.3608]
[1764081550966,0.0831777,87090.0,87089.0,0.3608]
[1764081551266,0.3608,87099.0,87091.0,0.04321]
[1764081551562,0.7408,87099.0,87093.0,0.14019]
[1764081551768,0.7522866,87099.0,87094.0,0.07156]
[1764081551971,0.0114875,87092.0,87091.0,0.04321]
[1764081552266,0.0114875,87092.0,87089.0,0.3608]
[1764081552577,0.1583685,87084.0,87083.0,0.0001722]
[1764081552862,0.7483685,87084.0,87083.0,0.0001722]
[1764081553069,0.5883685,87084.0,87083.0,0.0001722]
[1764081553271,0.9683685,87084.0,87061.0,0.3608]
[1764081553567,0.0847114,87062.0,87061.0,0.3608]
[1764081553762,0.4014914,87062.0,87061.0,0.3608]
[1764081553969,0.1014914,87062.0,87061.0,0.43236]
[1764081554264,0.4414914,87062.0,87061.0,0.3608]
[1764081554469,0.4947114,87062.0,87061.0,0.3608]
[1764081554767,0.0001722,87070.0,87061.0,0.50099]
[1764081554965,0.4401722,87070.0,87061.0,0.50099]
[1764081555263,0.4401722,87070.0,87061.0,0.5124815]
[1764081555467,0.0114905,87069.0,87068.0,0.14019]
[1764081555770,0.0001722,87070.0,87069.0,0.14019]
[1764081557365,0.0114895,87077.0,87069.0,0.14019]
[1764081557565,0.4514895,87077.0,87076.0,0.14019]
[1764081557757,0.4514895,87077.0,87068.0,0.3608]
[1764081557758,0.0114904,87070.0,87069.0,0.14019]
[1764081557964,0.4414904,87070.0,87069.0,0.14019]
[1764081558766,0.43,87070.0,87069.0,0.14019]
[1764081558960,0.0001722,87078.0,87077.0,0.14019]
[1764081559167,0.0001722,87078.0,87077.0,0.50099]
[1764081559870,0.3608,87101.0,87077.0,0.50099]
[1764081559871,0.0114871,87095.0,87092.0,0.07156]
[1764081560070,0.4214871,87095.0,87092.0,0.43236]
[1764081560471,0.4214871,87095.0,87092.0,0.3608]
[1764081560472,0.4414871,87095.0,87092.0,0.3608]
[1764081560765,0.0114882,87086.0,87085.0,0.3609722]
[1764081560971,0.37877688,87102.0,87085.0,0.3609722]
[1764081561165,0.0114882,87086.0,87085.0,0.3609722]
[1764081561371,0.5783682,87086.0,87085.0,0.0001722]
[1764081561672,0.6583682,87086.0,87085.0,0.0001722]
[1764081561869,0.5783682,87086.0,87085.0,0.0001722]
[1764081562778,0.421,87086.0,87085.0,0.1403622]
[1764081562977,0.422,87086.0,87085.0,0.1403622]
[1764081563366,0.97888,87086.0,87085.0,0.0001722]
[1764081563572,0.92868,87086.0,87085.0,0.0001722]
[1764081563772,0.4018,87086.0,87085.0,0.1403622]
[1764081564076,0.421,87086.0,87085.0,0.1403622]
[1764081564376,0.001,87086.0,87085.0,0.5011622]
[1764081564587,0.0114863,87101.0,87100.0,0.14019]
[1764081564767,0.0114863,87101.0,87100.0,0.50099]
[1764081565473,0.0114879,87089.0,87088.0,0.1834]
[1764081565673,0.4614879,87089.0,87088.0,0.1834]
[1764081565874,0.0114875,87092.0,87091.0,0.14019]
[1764081566272,0.0001722,87102.0,87094.0,0.14019]
[1764081566472,0.0001722,87102.0,87099.0,0.14019]
[1764081566473,0.0114864,87100.0,87099.0,0.14019]
[1764081566675,0.4214864,87100.0,87099.0,0.14019]
[1764081566875,0.0114878,87089.0,87088.0,0.1834]
[1764081567078,0.0114882,87086.0,87085.0,0.3609722]
[1764081567275,0.0114882,87086.0,87085.0,0.4325322]
[1764081567482,0.0114882,87086.0,87085.0,0.5011622]
[1764081567776,0.0114878,87090.0,87089.0,0.14019]
[1764081568869,0.3608,87103.0,87088.0,0.04321]
[1764081569075,0.3722861,87103.0,87101.0,0.14019]
[1764081569472,0.4501722,87102.0,87089.0,0.07156]
[1764081569675,0.0114878,87097.0,87092.0,0.3608]
[1764081569878,0.0114888,87089.0,87088.0,0.1834]
[1764081570086,0.0114886,87091.0,87090.0,0.14019]
[1764081570484,0.0114886,87091.0,87085.0,0.3609722]
[1764081570485,0.1583692,87086.0,87085.0,0.0001722]
[1764081570677,0.1583692,87086.0,87046.0,0.3608]
[1764081570678,0.14688,87056.0,87046.0,0.3608]
[1764081570876,0.0114932,87056.0,87055.0,0.50099]
[1764081571086,0.0114931,87057.0,87056.0,0.14019]
[1764081571285,0.13,87057.0,87056.0,0.14019]
[1764081571581,0.0114889,87089.0,87068.0,0.14019]
[1764081571778,0.7522907,87075.0,87074.0,0.07156]
[1764081572586,0.7408,87075.0,87074.0,0.07156]
[1764081572883,0.0114917,87069.0,87066.0,0.0001723]
[1764081573084,0.3914917,87069.0,87068.0,0.07156]
[1764081573384,0.1583718,87067.0,87066.0,0.0001723]
[1764081573587,0.5483718,87067.0,87066.0,0.0001723]
[1764081574590,0.0114934,87055.0,87054.0,0.00012492]
[1764081574887,0.45,87055.0,87054.0,0.00012492]
[1764081575286,0.3608,87084.0,87054.0,0.00012492]
[1764081575587,0.3608,87076.0,87061.0,0.3608]
[1764081575774,0.1583724,87062.0,87061.0,0.3608]
[1764081576085,0.5883724,87062.0,87061.0,0.3608]
[1764081576387,0.57688,87062.0,87061.0,0.3608]
[1764081576978,0.3608,87069.0,87066.0,0.0114917]
[1764081577179,0.7708,87069.0,87066.0,0.0114917]
[1764081577379,0.0114922,87063.0,87061.0,0.3608]
[1764081577781,0.1583728,87059.0,87058.0,0.00011511]
[1764081577984,0.9191728,87059.0,87058.0,0.00011511]
[1764081578189,0.1583733,87055.0,87054.0,0.00012492]
[1764081578483,0.14688,87042.0,87041.0,0.3608]
[1764081578694,0.04375,87040.0,87026.0,0.3608]
[1764081578885,0.5052454,87040.0,87034.0,0.3608]
[1764081579184,0.49375,87040.0,87034.0,0.3608]
[1764081579490,0.00010215,87039.0,87037.0,0.0114956]
[1764081579684,0.44010215,87039.0,87034.0,0.372296]
[1764081579983,0.0114964,87032.0,87026.0,0.3608]
[1764081580182,0.00010215,87039.0,87026.0,0.3608]
[1764081580386,0.44010215,87039.0,87028.0,0.0114968]
[1764081580583,0.0114959,87036.0,87028.0,0.0114968]
[1764081580785,0.43,87036.0,87025.0,0.3722972]
[1764081580983,0.43,87036.0,87017.0,0.3608]
[1764081580984,0.0114964,87032.0,87023.0,0.0114975]
[1764081581176,0.36,87032.0,87031.0,0.0114964]
[1764081581585,0.36,87032.0,87031.0,0.14009]
[1764081581788,0.00010215,87039.0,87038.0,0.1515857]
[1764081581993,2.3e-06,87046.0,87045.0,0.1731848]
[1764081582284,0.40455,87072.0,87045.0,0.3824]
[1764081582484,0.17417451,87070.0,87053.0,0.3608]
[1764081582700,0.17417451,87070.0,87056.0,0.0114932]
[1764081582701,0.0114931,87059.0,87056.0,0.0114932]
[1764081582894,0.0114924,87064.0,87060.0,0.0114928]
[1764081583095,0.45,87064.0,87053.0,0.3609723]
[1764081583392,0.45,87064.0,87056.0,0.0114932]
[1764081583585,0.0114931,87059.0,87058.0,0.07069]
[1764081583797,0.011493,87059.0,87056.0,0.0114933]
[1764081583991,0.17417451,87070.0,87056.0,0.0114933]
[1764081584191,0.0114927,87062.0,87053.0,0.3609723]
[1764081584391,0.0114931,87059.0,87053.0,0.3609723]
[1764081584593,0.17417451,87070.0,87053.0,0.3609723]
[1764081584895,0.0114923,87064.0,87062.0,0.0114925]
[1764081585080,0.0114927,87062.0,87053.0,0.3609723]
[1764081585278,0.44,87062.0,87061.0,0.43149]
[1764081585687,0.44,87062.0,87061.0,0.3608]
[1764081585688,0.50808,87062.0,87061.0,0.3608]
[1764081585886,0.0114936,87054.0,87053.0,0.5125561]
[1764081586194,0.0114932,87057.0,87055.0,0.0114934]
[1764081586389,0.4414932,87057.0,87055.0,0.0114934]
[1764081586585,0.0114935,87055.0,87053.0,0.3609723]
[1764081586901,0.43,87055.0,87054.0,0.0821836]
[1764081587490,0.17434681,87071.0,87053.0,0.3609723]
[1764081587686,0.0114923,87064.0,87063.0,0.0114922]
[1764081587885,0.4314923,87064.0,87063.0,0.0114922]
[1764081588492,0.42,87064.0,87063.0,0.0114922]
[1764081588992,0.0001723,87071.0,87070.0,0.1515815]
[1764081589186,0.0001723,87071.0,87070.0,0.5123815]
[1764081590794,0.0001723,87071.0,87070.0,0.50089]
[1764081591094,0.3901723,87071.0,87070.0,0.43149]
[1764081591286,0.3901723,87071.0,87070.0,0.3608]
[1764081591287,0.5228123,87071.0,87070.0,0.3608]
[1764081591591,0.4582523,87071.0,87070.0,0.3608]
[1764081591783,0.3901723,87071.0,87060.0,0.3722927]
[1764081591988,0.0114927,87061.0,87060.0,0.43149]
[1764081592387,0.5341327,87061.0,87060.0,0.3608]
[1764081592801,0.0795736,87054.0,87053.0,0.0001723]
[1764081592982,0.4595736,87054.0,87053.0,0.0001723]
[1764081593394,0.5241336,87054.0,87053.0,0.0001723]
[1764081594499,0.51264,87054.0,87053.0,0.0001723]
[1764081594689,0.44808,87054.0,87053.0,0.0001723]
[1764081594992,0.51264,87054.0,87053.0,0.0001723]
[1764081595889,0.14,87054.0,87053.0,0.1402623]
[1764081596884,0.0114926,87062.0,87053.0,0.0001723]
[1764081597091,0.4314926,87062.0,87061.0,0.3608]
[1764081597983,0.5641326,87062.0,87061.0,0.3608]
[1764081598291,0.0114936,87054.0,87053.0,0.0001723]
[1764081598487,0.5341336,87054.0,87053.0,0.0001723]
[1764081600290,0.13264,87034.0,87029.0,0.08188863]
[1764081600490,0.1441368,87030.0,87029.0,0.3608]
[1764081600694,0.13264,87023.0,87022.0,0.06183527]
[1764081600892,0.13264,87017.0,87012.0,0.42263527]
[1764081601094,0.13264,87017.0,87003.0,0.42263527]
[1764081601095,0.13517,87004.0,87003.0,0.42263527]
[1764081601388,0.13517,87004.0,86992.0,0.3608]
[1764081601389,0.13517,86994.0,86992.0,0.3608]
[1764081601597,0.40314,87024.0,86993.0,0.1314]
[1764081601799,0.40314,87024.0,87001.0,0.3608]
[1764081601800,0.0114998,87008.0,87001.0,0.3608]
[1764081601988,0.44,87008.0,87007.0,0.1314]
[1764081602190,0.00017241,87012.0,87011.0,0.1314]
[1764081602397,0.00017241,87012.0,87011.0,0.4922]
[1764081602788,0.0114996,87009.0,87001.0,0.06183527]
[1764081602988,0.0114996,87009.0,86999.0,0.18328]
[1764081602989,0.13517,87000.0,86999.0,0.18328]
[1764081603193,0.53517,87000.0,86999.0,0.18328]
[1764081603693,0.53517,87000.0,86999.0,0.2495]
[1764081603694,0.14,87000.0,86999.0,0.2495]
[1764081603897,0.43,87000.0,86999.0,0.2495]
[1764081604192,0.41,87000.0,86999.0,0.2495]
[1764081604399,0.58601,87000.0,86999.0,0.18528]
[1764081604694,0.41,87000.0,86999.0,0.1449009]
[1764081604886,0.60601,87000.0,86999.0,0.002]
[1764081605090,0.43,87000.0,86999.0,0.1314]
[1764081605292,0.43,87000.0,86999.0,0.4922]
[1764081605486,0.13517,86990.0,86989.0,0.3608]
[1764081605695,0.58517,86990.0,86989.0,0.3608]
[1764081605893,0.1466727,86985.0,86981.0,0.3608]
[1764081606102,0.58517,86985.0,86981.0,0.3608]
[1764081606802,0.45,86985.0,86984.0,0.1314812]
[1764081607102,0.3608,87014.0,86984.0,0.3618812]
[1764081607312,0.3608,87029.0,87013.0,0.42702]
[1764081607602,0.13517,87010.0,87009.0,0.3608]
[1764081607806,0.57517,87010.0,87009.0,0.3608]
[1764081608193,0.00017241,87018.0,87017.0,0.1428985]
[1764081608389,0.21017241,87018.0,87017.0,0.5036985]
[1764081608588,0.00017241,87018.0,87017.0,0.5036985]
[1764081608792,0.00017241,87018.0,87017.0,0.4922]
[1764081609991,0.001,87029.0,87028.0,0.1428971]
[1764081610192,0.56617,87029.0,87017.0,0.3608]
[1764081610400,0.431,87029.0,87018.0,0.0114984]
[1764081610595,0.0114979,87022.0,87018.0,0.0114984]
[1764081610802,0.0114979,87022.0,87017.0,0.3608]
[1764081610803,0.13517,87018.0,87017.0,0.3608]
[1764081611201,0.06853,87018.0,87017.0,0.3608]
[1764081611409,0.55623,87018.0,87017.0,0.3608]
[1764081612309,0.0114979,87022.0,87020.0,0.0114981]
[1764081612515,0.13829,87018.0,87017.0,0.3608]
[1764081612701,0.56829,87018.0,87017.0,0.3608]
[1764081612906,0.56929,87018.0,87017.0,0.3608]
[1764081613102,0.0820893,87011.0,87010.0,0.3608]
[1764081613410,0.13829,87010.0,87009.0,0.00017241]
[1764081613610,0.51829,87010.0,87009.0,0.00017241]
[1764081614206,0.0115007,87001.0,86994.0,0.1948216]
[1764081614508,0.0115007,87001.0,86993.0,0.3608]
[1764081614509,0.13829,86995.0,86993.0,0.3608]
[1764081614696,0.53829,86995.0,86994.0,0.0115016]
[1764081614903,0.1497916,86994.0,86993.0,0.3608]
[1764081615102,0.5497916,86994.0,86993.0,0.3608]
[1764081615607,0.5497916,86994.0,86985.0,0.00017241]
[1764081615608,0.1497926,86986.0,86985.0,0.00017241]
[1764081615800,0.5697926,86986.0,86985.0,0.00017241]
[1764081616002,0.13829,86985.0,86984.0,8.12e-05]
[1764081616208,0.51829,86985.0,86984.0,8.12e-05]
[1764081616705,0.38,86985.0,86984.0,0.1390912]
[1764081616903,0.5297927,86985.0,86984.0,8.12e-05]
[1764081617103,0.5297927,86985.0,86984.0,0.0010812]
[1764081617303,0.5696327,86985.0,86984.0,0.0010812]
[1764081617712,0.5696327,86985.0,86984.0,8.12e-05]
[1764081618207,0.55813,86985.0,86984.0,8.12e-05]
[1764081618406,0.5696327,86985.0,86984.0,8.12e-05]
[1764081619102,0.9896327,86985.0,86984.0,8.12e-05]
[1764081619302,0.13829,86971.0,86970.0,0.3608]
[1764081619504,0.53829,86971.0,86970.0,0.3608]
[1764081620003,0.53829,86971.0,86970.0,0.49981]
[1764081620004,0.4,86971.0,86970.0,0.49981]
[1764081620514,0.40010697,86971.0,86970.0,0.50081]
[1764081620710,0.53839697,86971.0,86970.0,0.3618]
[1764081620910,0.53839697,86971.0,86970.0,0.3628]
[1764081622212,0.48839697,86971.0,86970.0,0.4414947]
[1764081622822,0.08010697,86971.0,86970.0,0.5133147]
[1764081623012,0.02010697,86971.0,86970.0,0.5133147]
[1764081623214,0.00010697,86971.0,86970.0,0.5133147]
[1764081623418,0.00017241,86979.0,86978.0,0.1505137]
[1764081623619,0.06017241,86979.0,86978.0,0.5113137]
[1764081623814,0.52846241,86979.0,86978.0,0.4394937]
[1764081624808,0.00017241,86979.0,86978.0,0.5113137]
[1764081626920,2.41e-06,86979.0,86978.0,0.9123137]
[1764081627217,0.3608,87030.0,86996.0,0.04028]
[1764081627423,0.0114997,87008.0,87005.0,0.3608]
[1764081627624,0.13829,87006.0,87005.0,0.3608]
[1764081627816,0.51829,87006.0,87005.0,0.3608]
[1764081628516,0.149791,86998.0,86997.0,0.00017241]
[1764081628717,0.529791,86998.0,86997.0,0.00017241]
[1764081629118,1.130591,86998.0,86997.0,0.00017241]
[1764081629419,1.130591,86998.0,86973.0,0.3608]
[1764081629420,0.0115022,86990.0,86973.0,0.3608]
[1764081629611,0.0115037,86978.0,86976.0,0.0115039]
[1764081629813,0.0115041,86975.0,86973.0,0.3723043]
[1764081630014,0.0115036,86979.0,86977.0,0.0115038]
[1764081630220,0.39,86979.0,86978.0,0.13901]
[1764081630416,0.39,86979.0,86973.0,0.3608]
[1764081630417,0.0115026,86986.0,86985.0,0.13901]
[1764081630612,0.5197926,86986.0,86973.0,0.3608]
[1764081630814,0.1497942,86974.0,86973.0,0.3608]
[1764081631027,0.5697942,86974.0,86973.0,0.42799]
[1764081631520,0.5697942,86974.0,86973.0,0.3608]
[1764081632322,0.55829,86974.0,86973.0,0.42799]
[1764081632519,0.55829,86974.0,86973.0,0.3608]
[1764081632717,0.55829,86974.0,86973.0,0.4394943]
[1764081632919,0.55829,86974.0,86973.0,0.3608]
[1764081633418,0.55829,86974.0,86973.0,0.3723043]
[1764081633615,0.55829,86974.0,86973.0,0.4394943]
[1764081633816,0.55829,86974.0,86973.0,0.3608]
[1764081634621,0.42,86974.0,86973.0,0.49981]
[1764081634827,0.3608,87001.0,86986.0,0.13901]
[1764081635126,0.24017241,86987.0,86986.0,0.49981]
[1764081635326,0.00017241,86987.0,86986.0,0.49981]
[1764081635711,0.03984,87010.0,87006.0,0.0114999]
[1764081635921,0.10400929,87020.0,87012.0,0.0114991]
[1764081636226,0.10400929,87020.0,87005.0,0.3608]
[1764081636227,0.1497889,87014.0,87008.0,0.0114996]
[1764081636416,0.51829,87014.0,87013.0,0.3608]
[1764081636613,0.0114977,87024.0,87019.0,0.0114982]
[1764081636814,0.00017241,87022.0,87021.0,0.13901]
[1764081637013,0.02017241,87022.0,87021.0,0.13901]
[1764081637213,0.00017241,87022.0,87021.0,0.13901]
[1764081637714,0.07076241,87022.0,87021.0,0.06719]
[1764081637918,0.07076241,87022.0,87020.0,0.3608]
[1764081637919,0.149788,87021.0,87020.0,0.3608]
[1764081638119,0.0114985,87017.0,87008.0,0.0114996]
[1764081638313,0.13829,87006.0,87005.0,0.00017241]
[1764081638513,0.54829,87006.0,87005.0,0.00017241]
[1764081639118,0.55979,87006.0,87005.0,0.00017241]
[1764081639319,0.92059,87006.0,87005.0,0.00017241]
[1764081639915,0.92159,87006.0,87005.0,0.00017241]
[1764081640918,0.92259,87006.0,87005.0,0.00017241]
[1764081641118,0.92259,87006.0,86977.0,0.3608]
[1764081641119,0.0115026,86987.0,86977.0,0.3608]
[1764081641324,0.011503,86983.0,86977.0,0.3608]
[1764081641519,0.39,86983.0,86982.0,0.1339]
[1764081641926,0.0115009,86999.0,86982.0,0.3608]
[1764081642127,0.37,86999.0,86993.0,0.3608]
[1764081642429,0.13345,86994.0,86993.0,0.3608]
[1764081642630,0.37,86994.0,86982.0,0.3608]
[1764081642830,0.13345,86983.0,86982.0,0.3608]
[1764081643019,0.51345,86983.0,86973.0,0.3608]
[1764081643222,0.51345,86983.0,86964.0,0.3608]
[1764081643223,0.011505,86968.0,86965.0,0.06163854]
[1764081643432,0.13345,86965.0,86964.0,0.3608]
[1764081643626,0.53345,86965.0,86964.0,0.3608]
[1764081644423,0.46443,86965.0,86964.0,0.3608]
[1764081645026,0.37,86965.0,86964.0,0.5072055]
[1764081645228,0.0115045,86972.0,86968.0,0.0115049]
[1764081645526,0.0115053,86966.0,86964.0,0.3743054]
[1764081645729,0.3815053,86966.0,86964.0,0.3743054]
[1764081645926,0.0115049,86969.0,86966.0,0.0115053]
[1764081646131,0.0115054,86966.0,86965.0,0.1339]
[1764081646430,0.00017241,86975.0,86974.0,0.1454042]
[1764081646732,0.13017241,86975.0,86974.0,0.5062042]
[1764081647239,0.00017241,86975.0,86974.0,0.5062042]
[1764081647532,0.04249,86996.0,86974.0,0.8947]
[1764081647738,0.0115009,86999.0,86998.0,0.06941]
[1764081647926,0.13345,86993.0,86992.0,0.3608]
[1764081648121,0.13345,86993.0,86985.0,0.3608]
[1764081648122,0.13345,86986.0,86985.0,0.3608]
[1764081648324,0.13345,86986.0,86975.0,0.42243854]
[1764081648325,0.144953,86984.0,86983.0,0.3608]
[1764081648521,0.584953,86984.0,86983.0,0.3608]
[1764081649230,0.57345,86984.0,86983.0,0.3608]
[1764081649428,0.43443,86984.0,86983.0,0.43021]
[1764081649622,0.43443,86984.0,86983.0,0.3608]
[1764081649623,0.50345,86984.0,86983.0,0.3608]
[1764081650724,0.43443,86984.0,86983.0,0.3608]
[1764081650924,0.50345,86984.0,86983.0,0.3608]
[1764081651729,0.37,86984.0,86983.0,0.4947]
[1764081652234,0.00017241,86992.0,86991.0,0.1454019]
[1764081652441,0.01167421,86992.0,86991.0,0.4947]
[1764081652731,0.49460241,86992.0,86991.0,0.4947]
[1764081652928,0.00017241,86992.0,86991.0,0.4947]
[1764081654727,0.44017241,86992.0,86984.0,0.3608]
[1764081654930,0.06443,86985.0,86984.0,0.3608]
[1764081655238,0.55345,86985.0,86984.0,0.3608]
[1764081656532,0.0115039,86976.0,86975.0,0.00017241]
[1764081656928,0.5249539,86976.0,86975.0,0.00017241]
[1764081657134,0.51345,86976.0,86975.0,0.00017241]
[1764081658539,0.11630241,86992.0,86975.0,0.00017241]
[1764081658741,0.11613,86987.0,86986.0,0.3608]
[1764081658943,0.4510326,86987.0,86986.0,0.3608]
[1764081659139,0.11613,86976.0,86975.0,0.37247651]
[1764081659441,0.0115035,86979.0,86975.0,0.36097241]
[1764081659641,0.1276339,86976.0,86975.0,0.36097241]
[1764081659841,0.5476339,86976.0,86975.0,0.00017241]
[1764081660235,0.52000868,86976.0,86975.0,0.00017241]
[1764081661035,0.95000868,86976.0,86975.0,0.00017241]
[1764081661745,0.15258,86954.0,86953.0,0.06163854]
[1764081662044,0.11613,86948.0,86947.0,0.3608]
[1764081662239,0.11613,86948.0,86944.0,0.06163854]
[1764081662240,0.127638,86945.0,86944.0,0.06163854]
[1764081662437,0.11613,86935.0,86934.0,0.00811036]
[1764081662634,0.11613,86935.0,86934.0,0.12586036]
[1764081662635,0.4,86935.0,86934.0,0.12586036]
[1764081663035,0.51613,86935.0,86934.0,0.00811036]
[1764081663244,0.87693,86935.0,86934.0,0.00811036]
[1764081663749,0.99693,86935.0,86934.0,0.00811036]
[1764081664339,0.87693,86935.0,86922.0,0.00012501]
[1764081664536,0.11613,86923.0,86922.0,0.00012501]
[1764081664736,0.03645,86940.0,86936.0,0.0115092]
[1764081664935,0.42,86940.0,86938.0,0.011509]
[1764081665140,0.3608,86950.0,86942.0,0.05727]
[1764081665341,0.3608,86966.0,86942.0,0.11775]
[1764081665545,0.0115057,86963.0,86941.0,0.3608]
[1764081665739,0.17,86963.0,86961.0,0.0687758]
[1764081665952,0.0566,86962.0,86955.0,0.3608]
[1764081666134,0.41,86962.0,86955.0,0.3608]
[1764081666340,0.41,86962.0,86959.0,0.0115061]
[1764081666534,0.011506,86961.0,86955.0,0.3608]
[1764081666734,0.0566,86956.0,86955.0,0.3608]
[1764081666936,0.4166,86956.0,86955.0,0.3608]
[1764081667142,0.42,86956.0,86955.0,0.41807]
[1764081667332,0.21985,86968.0,86965.0,0.0115054]
[1764081667333,0.11613,86966.0,86965.0,0.0115054]
[1764081667538,0.00017251,86969.0,86965.0,0.0115054]
[1764081667539,0.00017251,86969.0,86968.0,0.129255]
[1764081667736,0.00017251,86969.0,86968.0,0.490055]
[1764081667945,0.3608,86989.0,86988.0,0.0115023]
[1764081668139,0.39,86989.0,86985.0,0.0115027]
[1764081668447,0.0566,86986.0,86978.0,0.3608]
[1764081668747,0.11613,86979.0,86978.0,0.3723037]
[1764081669046,0.00017251,86987.0,86979.0,0.0115035]
[1764081669249,0.11613,86979.0,86978.0,0.3608]
[1764081669445,0.0115041,86976.0,86974.0,0.0115042]
[1764081669637,0.09305,86985.0,86984.0,0.0115029]
[1764081669851,0.37,86985.0,86984.0,0.0115029]
[1764081670045,0.0566,86981.0,86980.0,0.0115034]
[1764081670243,0.1276334,86980.0,86979.0,0.3608]
[1764081670449,0.5576334,86980.0,86979.0,0.3608]
[1764081670749,0.43,86980.0,86979.0,0.47855]
[1764081670942,0.00017251,86987.0,86986.0,0.1292526]
[1764081671137,0.38017251,86987.0,86986.0,0.4900526]
[1764081671343,0.03645,87010.0,87007.0,0.0114998]
[1764081671546,0.0114992,87012.0,87009.0,0.06015]
[1764081671749,0.26,87012.0,87009.0,0.0716495]
[1764081671956,0.05992,87007.0,87006.0,0.3608]
[1764081672249,0.54801,87007.0,87006.0,0.3608]
[1764081672441,0.11801,87002.0,87001.0,0.3608]
[1764081672641,0.3722992,87012.0,87001.0,0.3608]
[1764081672939,0.0114996,87009.0,87008.0,0.06015]
[1764081673138,0.05992,87002.0,87001.0,0.3608]
[1764081673339,0.0115006,87001.0,86998.0,0.0001724]
[1764081673647,0.11801,86999.0,86998.0,0.0001724]
[1764081673839,0.52801,86999.0,86998.0,0.0001724]
[1764081674048,0.52801,86999.0,86977.0,0.0115037]
[1764081674049,0.0115034,86980.0,86977.0,0.0115037]
[1764081674247,0.3608,86992.0,86980.0,0.0115034]
[1764081674552,0.3608,86992.0,86975.0,0.0115041]
[1764081674553,0.0115038,86977.0,86975.0,0.0115041]
[1764081674746,0.3815038,86977.0,86975.0,0.0115041]
[1764081674954,0.3608,86992.0,86980.0,0.0115034]
[1764081675253,0.3608,86992.0,86974.0,0.3608]
[1764081675254,0.7508,86992.0,86990.0,0.0115021]
[1764081675442,0.0116738,86995.0,86994.0,0.11728]
[1764081675646,0.0115022,86989.0,86982.0,0.3608]
[1764081675854,0.0001724,86995.0,86982.0,0.3608]
[1764081676052,0.0115018,86992.0,86990.0,0.0115019]
[1764081676454,0.0367,87000.0,86990.0,0.0115019]
[1764081676651,0.4467,87000.0,86990.0,0.0115019]
[1764081677052,0.05992,86998.0,86997.0,0.0115011]
[1764081677353,0.0115012,86997.0,86990.0,0.011502]
[1764081677649,0.0115019,86992.0,86989.0,0.3608]
[1764081678042,0.11801,86990.0,86989.0,0.3608]
[1764081678245,0.4,86990.0,86989.0,0.47808]
[1764081678446,0.3915021,86990.0,86989.0,0.47808]
[1764081678857,0.3915021,86990.0,86982.0,0.3608]
[1764081679153,0.3915021,86990.0,86973.0,0.3608]
[1764081679154,0.1295137,86978.0,86973.0,0.3608]
[1764081679346,0.5495137,86978.0,86973.0,0.3608]
[1764081679541,0.53801,86978.0,86973.0,0.3608]
[1764081679746,0.0001724,86986.0,86977.0,0.1174524]
[1764081679959,0.0115027,86985.0,86982.0,0.3608]
[1764081680255,0.11801,86978.0,86977.0,0.0001724]
[1764081680446,0.5195137,86978.0,86977.0,0.0001724]
[1764081680652,0.9195137,86978.0,86977.0,0.0001724]
[1764081680955,0.6595137,86978.0,86977.0,0.0001724]
[1764081681254,0.9695137,86978.0,86977.0,0.0001724]
[1764081681557,0.6095137,86978.0,86977.0,0.0001724]
[1764081681758,0.88318589,86978.0,86977.0,2.4e-06]
[1764081681959,0.1295163,86958.0,86957.0,0.3608]
[1764081682147,0.5195163,86958.0,86957.0,0.3608]
[1764081682345,0.39,86958.0,86957.0,0.4895864]
[1764081682653,0.39,86958.0,86957.0,0.47808]
[1764081683157,0.39,86958.0,86957.0,0.48008]
[1764081684162,0.0001725,86966.0,86965.0,0.1287854]
[1764081684360,0.0001725,86966.0,86965.0,0.4895854]
[1764081685258,0.0001725,86966.0,86965.0,0.4905854]
[1764081685654,0.0001725,86966.0,86965.0,0.3618]
[1764081685655,0.1181825,86966.0,86965.0,0.3618]
[1764081685849,0.1181825,86966.0,86965.0,0.3628]
[1764081686050,0.0600925,86966.0,86965.0,0.42295]
[1764081686362,0.3701725,86966.0,86965.0,0.48008]
[1764081687255,0.4881825,86966.0,86965.0,0.3628]
[1764081688660,0.8489825,86966.0,86965.0,0.002]
[1764081688863,0.8489825,86966.0,86949.0,0.3609725]
[1764081688864,0.1295174,86950.0,86949.0,0.3609725]
[1764081689168,0.5795174,86950.0,86949.0,0.3609725]
[1764081689569,0.56801,86950.0,86949.0,0.3609725]